bitfinex-derivatives/quotes_ETHF0:USTF0_20251119
["timestamp","ask_amount","ask_price","bid_price","bid_amount"]
[1763519437069,0.52015,3116.6,3116.4,3.2078]
[1763519437372,0.85307,3116.5,3116.4,3.2078]
[1763519437571,0.85307,3116.5,3116.4,3.72798]
[1763519437879,1.39527,3116.5,3116.4,3.2078]
[1763519438470,0.85307,3116.5,3116.4,3.2078]
[1763519438779,0.85307,3116.5,3116.4,3.72798]
[1763519439574,0.85307,3116.5,3116.4,3.2078]
[1763519440977,1.39527,3116.5,3116.4,3.2078]
[1763519445385,1.06247,3115.9,3115.8,0.00294597]
[1763519446186,0.52027,3115.9,3115.8,0.00294597]
[1763519446479,0.3329,3116.0,3115.9,0.52027]
[1763519446687,0.3329,3116.0,3115.8,0.52321597]
[1763519446880,0.3329,3116.0,3115.9,0.52027]
[1763519447578,0.85315,3116.0,3115.8,0.00294597]
[1763519447985,0.85315,3116.0,3115.8,0.52322597]
[1763519449483,0.85315,3116.0,3115.9,0.52027]
[1763519450484,0.52027,3115.9,3115.8,0.52322597]
[1763519450682,0.52027,3115.9,3115.8,0.00294597]
[1763519451184,0.52027,3115.9,3115.8,1.15039898]
[1763519451385,0.3329,3116.0,3115.9,0.52027]
[1763519451587,0.3329,3116.0,3115.9,1.66772301]
[1763519451885,0.3329,3116.5,3115.8,1.72412549]
[1763519452088,0.52018,3116.4,3116.3,3.728]
[1763519452480,0.52018,3116.4,3116.3,3.2078]
[1763519453286,0.52018,3116.4,3116.3,3.728]
[1763519453787,0.3329,3116.5,3116.4,0.52018]
[1763519453988,0.85307,3116.5,3116.4,0.52018]
[1763519454388,0.85307,3116.5,3116.3,3.2078]
[1763519455491,0.3329,3116.5,3116.3,3.2078]
[1763519455983,0.3329,3116.5,3116.3,3.72799]
[1763519456290,0.85307,3116.5,3116.3,3.72799]
[1763519456490,0.85307,3116.5,3116.4,0.52018]
[1763519456691,0.3329,3116.5,3116.4,0.52018]
[1763519457188,0.52716703,3117.4,3117.0,0.52007]
[1763519457387,0.5422,3117.3,3117.2,3.2078]
[1763519457590,1.06223,3117.3,3117.2,3.2078]
[1763519457892,1.06223,3117.3,3117.2,3.72785]
[1763519458585,1.06223,3117.3,3117.2,3.2078]
[1763519460493,1.01293,3116.7,3116.6,4.22132395]
[1763519460787,1.01293,3116.7,3116.6,3.2078]
[1763519462889,0.3256,3117.0,3116.6,3.2078]
[1763519463490,0.84568,3117.0,3116.8,0.52011]
[1763519463691,0.3256,3117.0,3116.9,0.5201]
[1763519464894,0.84568,3117.0,3116.6,4.92250994]
[1763519465096,0.84568,3117.0,3116.9,0.5201]
[1763519465292,0.84568,3117.0,3116.7,0.52013]
[1763519465496,0.3256,3117.0,3116.6,3.2078]
[1763519465694,0.3256,3117.0,3116.6,3.72793]
[1763519465898,1.01293,3116.7,3116.6,3.2078]
[1763519466792,0.4928,3116.7,3116.6,3.72795]
[1763519466993,0.52012,3116.8,3116.7,0.52013]
[1763519468706,0.52012,3116.8,3116.6,3.2078]
[1763519468998,1.01293,3116.7,3116.6,3.2078]
[1763519476313,1.01298,3116.4,3116.3,0.85718766]
[1763519476514,0.3256,3116.5,3116.2,4.06498766]
[1763519476515,1.013,3116.3,3116.2,4.06498766]
[1763519477620,0.5202,3116.3,3116.2,4.06498766]
[1763519478117,1.013,3116.3,3116.2,4.06498766]
[1763519478816,0.3256,3117.0,3116.2,3.2078]
[1763519479020,0.3256,3117.0,3116.5,1.37865737]
[1763519479316,0.3256,3117.0,3116.7,0.52013]
[1763519479517,0.52012,3116.8,3116.7,0.52013]
[1763519479719,0.52013,3116.7,3116.6,0.85849737]
[1763519480017,0.3256,3117.0,3116.6,0.52015]
[1763519480418,0.52013,3116.7,3116.6,0.85849737]
[1763519481217,0.52013,3116.7,3116.6,1.37864737]
[1763519481515,0.52013,3116.7,3116.6,0.85849737]
[1763519482418,0.3256,3117.0,3116.6,3.2078]
[1763519482606,0.3256,3117.0,3116.7,0.8588123]
[1763519482916,0.52012,3116.8,3116.7,0.8588123]
[1763519483114,0.3256,3117.0,3116.6,4.5867623]
[1763519483315,0.52013,3116.7,3116.6,4.0666123]
[1763519483512,0.52012,3116.8,3116.6,4.5867623]
[1763519483816,0.5201,3116.9,3116.7,0.52013]
[1763519484017,0.52012,3116.8,3116.6,4.0666123]
[1763519484516,0.3256,3117.0,3116.7,0.8588123]
[1763519484818,1.33848,3117.0,3116.9,0.8587708]
[1763519485015,1.0108,3116.9,3116.8,0.8587708]
[1763519487113,1.01092,3116.2,3116.1,3.2078]
[1763519487317,0.4907,3115.9,3115.8,0.00294597]
[1763519487513,4.21877,3115.9,3115.8,0.00294597]
[1763519491713,3.72807,3115.9,3115.8,0.00294597]
[1763519491918,4.18907,3115.9,3115.8,0.00294597]
[1763519492515,3.2078,3115.9,3115.8,0.00294597]
[1763519493722,0.81776,3116.0,3115.8,0.00294597]
[1763519493922,0.52027,3115.9,3115.8,0.00294597]
[1763519494314,0.2975,3116.0,3115.8,0.00294597]
[1763519494915,0.2975,3116.0,3115.9,0.52027]
[1763519495116,0.52022,3116.2,3116.1,0.52023]
[1763519495424,0.81768,3116.5,3115.8,4.35599786]
[1763519495624,0.81768,3116.5,3116.3,0.52018]
[1763519495830,0.81768,3116.5,3116.4,0.52018]
[1763519496029,0.2975,3116.5,3116.4,0.52018]
[1763519496622,0.52011,3116.9,3116.7,0.52013]
[1763519497035,0.3256,3117.0,3116.3,3.72799]
[1763519497328,0.3256,3117.0,3116.3,3.2078]
[1763519497525,0.2871,3116.5,3116.4,0.52018]
[1763519498329,0.52014,3116.7,3116.5,0.52017]
[1763519499227,0.3256,3117.0,3116.6,0.52015]
[1763519500431,0.3256,3117.0,3116.6,3.2078]
[1763519500627,0.3256,3117.0,3116.8,0.52012]
[1763519501428,0.5201,3116.9,3116.8,0.52012]
[1763519501628,0.3256,3117.0,3116.9,0.5201]
[1763519502027,3.2078,3117.3,3117.2,0.52005]
[1763519502225,0.00714703,3117.4,3117.3,0.52003]
[1763519502922,0.52716703,3117.4,3117.3,0.52003]
[1763519503122,0.98103,3117.3,3117.2,0.52005]
[1763519503321,0.00714703,3117.4,3117.3,0.52003]
[1763519503930,0.52716703,3117.4,3117.1,0.52007]
[1763519504133,0.52716703,3117.4,3117.0,3.2078]
[1763519505030,0.00714703,3117.4,3117.3,0.52003]
[1763519505231,0.51994,3117.9,3117.8,0.51995]
[1763519505532,0.2871,3118.0,3117.5,3.2078]
[1763519505533,0.80702,3118.0,3117.5,3.2078]
[1763519505728,0.2871,3118.0,3117.9,3.2078]
[1763519505933,0.51982,3118.6,3118.3,0.51985]
[1763519506124,0.2871,3119.0,3118.3,3.72765]
[1763519506324,0.29038649,3118.5,3118.3,3.73162348]
[1763519512939,0.29038649,3118.5,3118.4,0.51985]
[1763519516337,0.461,3118.4,3118.3,3.21177348]
[1763519516537,0.98085,3118.4,3118.3,3.21177348]
[1763519517243,0.51985,3118.4,3118.3,3.21177348]
[1763519517740,0.51985,3118.4,3118.3,3.73164348]
[1763519518439,0.98085,3118.4,3118.3,3.21177348]
[1763519519043,0.81022649,3118.5,3118.4,0.51985]
[1763519519232,0.29038649,3118.5,3118.4,0.51985]
[1763519520640,0.51963,3119.8,3119.4,0.51968]
[1763519520840,0.2871,3120.0,3119.9,0.5196]
[1763519521032,0.2871,3120.0,3119.9,3.7274]
[1763519521739,0.75160139,3120.0,3119.9,3.2078]
[1763519523343,0.28950139,3120.0,3119.9,3.2078]
[1763519524743,0.75160139,3120.0,3119.9,3.2078]
[1763519525741,0.28950139,3120.0,3119.9,3.2078]
[1763519527043,0.75160139,3120.0,3119.9,3.2078]
[1763519530043,0.4621,3119.9,3119.8,0.51961]
[1763519531140,0.28950139,3120.0,3119.8,0.51961]
[1763519531443,0.28950139,3120.0,3119.9,3.2078]
[1763519531644,0.00240139,3120.0,3119.9,3.2078]
[1763519532151,0.28200139,3120.0,3119.9,3.2078]
[1763519533146,0.00240139,3120.0,3119.9,3.2078]
[1763519533348,0.00481417,3120.3,3120.2,0.51955]
[1763519534348,0.00887184,3120.3,3120.2,0.51955]
[1763519537647,1.26128,3120.0,3119.9,3.21261417]
[1763519537950,0.98175,3119.6,3119.5,3.2078]
[1763519538851,0.5197,3119.3,3119.2,0.51971]
[1763519539041,0.5197,3119.3,3119.0,3.2078]
[1763519539042,0.2796,3119.5,3119.4,0.51968]
[1763519539241,0.2796,3119.5,3119.4,3.72748]
[1763519540551,0.2796,3120.0,3119.4,3.2078]
[1763519540847,0.2796,3120.0,3119.8,0.5196]
[1763519541248,0.79918,3120.0,3119.8,0.5196]
[1763519541441,0.2796,3120.0,3119.8,0.5196]
[1763519542252,0.2601,3119.5,3119.4,3.72748]
[1763519542954,0.6818,3119.5,3119.4,3.2078]
[1763519544756,0.4217,3119.2,3119.1,0.51972]
[1763519544962,0.4217,3119.4,3119.3,0.51969]
[1763519545146,0.2601,3119.5,3119.3,0.51969]
[1763519545342,0.4217,3119.7,3119.6,0.51965]
[1763519545554,0.2796,3120.0,3119.9,0.5196]
[1763519545754,1.22089,3120.0,3119.6,3.2078]
[1763519545948,0.9413,3119.9,3119.8,0.51961]
[1763519546155,0.2796,3120.0,3119.8,0.51961]
[1763519548054,0.51949,3120.6,3120.2,0.51955]
[1763519548256,0.2796,3121.0,3120.9,0.51943]
[1763519548459,0.4015,3120.9,3120.8,0.51944]
[1763519549361,0.40489612,3120.9,3120.8,0.0022655]
[1763519553163,0.4015,3120.6,3120.5,0.00480623]
[1763519553357,0.92098,3120.6,3120.5,0.00480623]
[1763519554251,0.92098,3120.6,3120.5,0.00856439]
[1763519557659,0.4015,3120.7,3120.6,0.51948]
[1763519557871,0.00339612,3120.9,3120.7,0.51946]
[1763519558360,0.00339612,3120.9,3120.5,0.52805439]
[1763519558664,0.51945,3120.8,3120.6,0.51948]
[1763519559258,0.00339612,3120.9,3120.5,0.00856439]
[1763519559259,0.51947,3120.7,3120.5,0.52806439]
[1763519559457,0.00339612,3120.9,3120.7,0.51946]
[1763519560066,0.00480623,3121.2,3121.1,0.5194]
[1763519560367,0.2507,3121.0,3120.9,0.51942]
[1763519561154,0.4015,3120.9,3120.8,3.2078]
[1763519566171,0.92093,3120.9,3120.8,3.2078]
[1763519566964,0.4015,3120.9,3120.8,3.72725]
[1763519567169,0.92093,3120.9,3120.8,3.2078]
[1763519567468,0.2601,3121.5,3120.8,3.2078]
[1763519567666,0.2507,3121.0,3120.9,3.72723]
[1763519568270,1.17162,3121.0,3120.9,3.2078]
[1763519568671,1.17414638,3121.0,3120.9,3.72723]
[1763519569262,1.17414638,3121.0,3120.9,3.2078]
[1763519570274,0.92098,3120.6,3120.5,3.21636439]
[1763519570478,0.92113,3119.7,3119.6,1.14525189]
[1763519570670,0.2507,3120.0,3119.3,3.2078]
[1763519570671,0.4015,3119.4,3119.3,3.2078]
[1763519571478,0.4015,3119.4,3119.3,3.21100176]
[1763519571779,0.92593623,3119.7,3119.6,0.4119]
[1763519571974,0.92117,3119.5,3119.4,0.4119]
[1763519572479,0.4015,3119.4,3119.3,3.21100176]
[1763519573868,0.51967,3119.5,3119.4,0.4119]
[1763519574267,1.17187,3119.5,3119.3,3.21100176]
[1763519574472,0.51965,3119.6,3119.3,3.73070176]
[1763519574767,0.4015,3119.4,3119.3,3.21100176]
[1763519575476,0.51967,3119.5,3119.4,0.4119]
[1763519579176,0.92117,3119.5,3119.4,0.4119]
[1763519579771,0.52444623,3119.7,3119.6,0.4265]
[1763519579973,0.4327,3119.6,3119.5,0.94617]
[1763519580768,0.4327,3119.4,3119.3,3.21100176]
[1763519580971,0.4327,3119.4,3119.3,3.63750176]
[1763519582081,0.4327,3119.5,3119.4,0.4265]
[1763519582283,0.43750623,3119.7,3119.6,0.94615]
[1763519582576,0.00480623,3119.7,3119.6,0.94615]
[1763519582780,0.25322638,3121.0,3120.4,0.4265]
[1763519582781,3.2078,3120.9,3120.4,0.4265]
[1763519583079,0.51949,3120.6,3120.5,0.4265]
[1763519583270,0.4327,3120.6,3120.5,0.4265]
[1763519583467,0.4327,3120.6,3120.2,3.2078]
[1763519583468,3.72725,3120.9,3120.7,0.94596]
[1763519583673,3.2078,3120.9,3120.8,0.4265]
[1763519584076,3.6405,3120.9,3120.8,0.4265]
[1763519584265,3.6405,3120.9,3120.2,3.2078]
[1763519584266,0.4327,3120.5,3120.4,0.51952]
[1763519584467,0.4327,3120.5,3120.4,0.94602]
[1763519584669,0.51946,3120.8,3120.6,0.51947]
[1763519584880,0.51946,3120.8,3120.7,0.4265]
[1763519585383,0.95216,3120.8,3120.7,0.4265]
[1763519586788,3.2078,3120.9,3120.4,0.4265]
[1763519586978,0.5195,3120.5,3120.4,0.4265]
[1763519587883,0.9522,3120.5,3120.4,0.4265]
[1763519588083,0.9522,3120.5,3120.0,0.94608]
[1763519588084,0.51957,3120.1,3120.0,0.94608]
[1763519588283,3.4605,3120.5,3120.2,0.4265]
[1763519588578,0.95222,3120.4,3120.3,0.4265]
[1763519588785,0.51957,3120.1,3120.0,1.20278]
[1763519588970,0.51955,3120.2,3120.1,0.94606]
[1763519590480,0.51955,3120.2,3120.1,0.4265]
[1763519590780,0.4327,3119.8,3119.7,4.35305189]
[1763519590976,0.95232,3119.8,3119.7,3.2078]
[1763519591287,0.4327,3119.8,3119.7,4.15393]
[1763519591483,1.20499,3120.0,3119.9,0.4265]
[1763519591786,1.20499,3120.0,3119.7,3.72743]
[1763519591787,0.95232,3119.8,3119.7,3.72743]
[1763519592087,0.4327,3119.8,3119.7,4.15393]
[1763519592287,0.95232,3119.8,3119.7,4.15393]
[1763519592487,0.4327,3119.8,3119.7,4.15393]
[1763519592690,0.5196,3119.9,3119.8,0.94611]
[1763519592996,0.4327,3119.9,3119.8,0.94611]
[1763519593383,3.4605,3120.5,3120.0,0.94608]
[1763519593384,0.51957,3120.1,3120.0,0.94608]
[1763519593584,0.95227,3120.1,3120.0,0.4265]
[1763519593784,0.9523,3119.9,3119.8,0.4265]
[1763519594086,3.4605,3120.5,3119.9,0.51959]
[1763519594390,3.4605,3120.5,3120.0,0.4265]
[1763519594691,0.4327,3120.1,3120.0,0.4265]
[1763519594988,0.2527,3120.0,3119.7,3.2078]
[1763519595195,1.20498,3120.0,3119.9,0.4265]
[1763519595387,0.95228,3120.0,3119.9,0.4265]
[1763519596086,0.95228,3120.0,3119.9,0.9461]
[1763519596284,0.51956,3120.2,3120.1,0.4265]
[1763519596489,0.51956,3120.2,3120.1,0.94607]
[1763519597888,3.4605,3120.5,3120.1,0.4265]
[1763519598083,3.4605,3120.5,3120.0,0.2567]
[1763519598084,0.51952,3120.4,3120.3,0.94603]
[1763519598491,0.5195,3120.6,3120.5,0.4265]
[1763519598791,0.00252638,3121.0,3120.9,0.4265]
[1763519599289,0.00252638,3121.0,3120.9,0.94593]
[1763519602991,0.38442638,3121.0,3120.9,0.4265]
[1763519603589,0.51943,3120.9,3120.7,0.51946]
[1763519603790,0.51943,3120.9,3120.8,0.4012]
[1763519604096,0.62962638,3121.0,3120.9,0.92063]
[1763519604686,0.00252638,3121.0,3120.9,0.92063]
[1763519605700,0.52194638,3121.0,3120.9,0.92063]
[1763519605892,0.90384638,3121.0,3120.9,0.4012]
[1763519606495,0.90384638,3121.0,3120.9,0.92063]
[1763519606694,0.90224638,3121.0,3120.9,0.92063]
[1763519608088,0.52034638,3121.0,3120.9,0.92063]
[1763519608488,0.52034638,3121.0,3120.9,0.4012]
[1763519609789,0.88604638,3121.0,3120.9,0.92063]
[1763519609992,0.88517,3120.7,3120.6,0.52428623]
[1763519610196,0.88517,3120.7,3120.6,0.92088623]
[1763519610498,0.88517,3120.7,3120.6,0.52428623]
[1763519610700,0.36662638,3121.0,3120.9,0.3966]
[1763519611001,0.00092638,3121.0,3120.9,0.3966]
[1763519611191,0.00092638,3121.0,3120.9,0.91603]
[1763519611588,0.00092638,3121.0,3120.9,2.06128189]
[1763519611898,0.00092638,3121.0,3120.8,3.2078]
[1763519611899,0.885,3121.7,3121.6,0.3966]
[1763519612395,0.51927,3122.0,3121.9,0.3966]
[1763519612594,3.72697,3122.6,3122.5,0.3966]
[1763519613095,4.09530547,3122.6,3122.5,0.40019332]
[1763519613303,4.09530547,3122.6,3122.5,0.00359332]
[1763519613496,0.88750547,3122.6,3122.5,0.00359332]
[1763519615000,0.88750547,3122.6,3122.5,3.60799332]
[1763519615902,0.88750547,3122.6,3122.5,0.00359332]
[1763519618106,0.88750547,3122.6,3122.2,0.40140623]
[1763519618107,0.8849,3122.3,3122.2,0.40140623]
[1763519618503,0.8849,3122.3,3122.2,0.00480623]
[1763519618905,0.8849,3122.3,3122.2,0.40366957]
[1763519619997,0.8849,3122.3,3122.2,0.00706957]
[1763519620709,4.0927,3122.3,3122.2,0.00706957]
[1763519620910,0.88508,3121.3,3121.2,3.2078]
[1763519621406,0.88508,3121.3,3121.2,3.6044]
[1763519621899,0.3657,3121.3,3121.2,3.60711059]
[1763519622303,0.51936,3121.4,3121.3,0.3966]
[1763519623395,0.88502,3121.6,3121.5,0.3966]
[1763519623994,0.88505,3121.4,3121.2,3.72989059]
[1763519624196,0.3657,3121.3,3121.2,3.21051059]
[1763519624400,0.3657,3121.3,3121.2,3.60711059]
[1763519625403,0.3657,3121.3,3121.2,3.21051059]
[1763519625599,0.3657,3121.3,3121.2,0.00271059]
[1763519626511,0.51935,3121.4,3121.2,0.39931059]
[1763519626712,0.51933,3121.6,3121.5,0.3966]
[1763519627012,0.88503,3121.6,3121.5,0.3966]
[1763519627204,0.51936,3121.4,3121.3,0.3966]
[1763519627903,0.2233,3122.0,3121.5,1.15603]
[1763519627904,0.51932,3121.6,3121.5,1.15603]
[1763519628104,0.2233,3122.0,3121.5,1.15603]
[1763519629211,0.5193,3121.7,3121.6,0.3966]
[1763519630104,0.885,3121.7,3121.6,0.3966]
[1763519630303,0.51933,3121.5,3121.4,0.3966]
[1763519630611,0.51932,3121.7,3121.6,0.3966]
[1763519631604,0.51932,3121.7,3121.6,0.91592]
[1763519632005,0.51929,3121.8,3121.7,0.9159]
[1763519632526,0.51929,3121.8,3121.7,0.3966]
[1763519633012,0.51929,3121.8,3121.7,0.9159]
[1763519633415,0.95039,3122.3,3121.7,4.1237]
[1763519633916,0.51929,3121.8,3121.7,4.1237]
[1763519634613,0.88499,3121.8,3121.7,3.6044]
[1763519635913,0.88499,3121.8,3121.7,4.1237]
[1763519636614,0.00263547,3122.6,3121.7,4.1237]
[1763519636615,0.21261785,3122.7,3121.7,4.1237]
[1763519636814,3.2078,3122.4,3121.9,0.51927]
[1763519637110,0.51919,3122.4,3122.3,0.3966]
[1763519637413,0.88489,3122.4,3122.3,0.3966]
[1763519637616,0.88848849,3122.4,3122.3,0.3966]
[1763519638118,0.94007,3121.9,3121.8,4.0578411]
[1763519638416,0.00359849,3122.4,3122.0,0.675]
[1763519638616,0.51924,3122.1,3122.0,1.19425]
[1763519640512,0.51924,3122.1,3122.0,0.675]
[1763519641112,0.94004,3122.1,3122.0,0.675]
[1763519642013,0.94007,3121.9,3121.8,3.2078]
[1763519642615,0.94007,3121.9,3121.8,3.6276]
[1763519643018,0.94007,3121.9,3121.8,3.2078]
[1763519643708,0.94007,3121.9,3121.2,0.00271059]
[1763519643709,0.4208,3121.3,3121.2,0.00271059]
[1763519645817,0.51935,3121.4,3121.3,0.4198]
[1763519646020,0.94015,3121.4,3121.3,0.4198]
[1763519646524,0.4208,3121.4,3121.3,0.4198]
[1763519647313,3.2078,3121.9,3121.3,0.4198]
[1763519647922,0.51934,3121.5,3121.3,0.4198]
[1763519648121,3.2078,3121.9,3121.2,1.37348314]
[1763519648122,0.94017,3121.3,3121.2,0.85410314]
[1763519648417,0.94017,3121.3,3121.2,0.00271059]
[1763519651729,0.94017,3121.3,3121.2,0.42251059]
[1763519652024,0.94017,3121.3,3121.2,0.00271059]
[1763519658624,1.16082,3121.0,3120.9,3.21260623]
[1763519658923,0.51957,3120.1,3120.0,4.05919255]
[1763519659125,0.94037,3120.1,3120.0,3.2078]
[1763519659726,0.94356597,3120.1,3120.0,3.21056835]
[1763519660030,0.52276597,3120.1,3120.0,3.88556835]
[1763519660420,0.52276597,3120.1,3120.0,3.21056835]
[1763519660421,0.94356597,3120.1,3120.0,3.21056835]
[1763519660928,0.00319597,3120.1,3120.0,3.88556835]
[1763519663334,0.00319597,3120.1,3120.0,4.40514835]
[1763519666626,0.51948,3120.7,3120.6,0.4269]
[1763519666932,0.96132,3121.0,3120.9,0.4269]
[1763519667128,0.96132,3121.0,3120.9,0.94634]
[1763519667519,0.96132,3121.0,3120.9,0.4269]
[1763519667719,1.40729816,3121.0,3120.9,0.4269]
[1763519668333,0.96539816,3121.0,3120.9,0.4269]
[1763519668936,0.51947,3120.7,3120.6,3.2078]
[1763519669237,0.94027,3120.7,3120.6,3.6575]
[1763519669426,0.94027,3120.7,3120.6,3.2078]
[1763519669733,0.94027,3120.7,3120.6,3.6575]
[1763519670436,3.21187816,3121.0,3120.6,4.17698]
[1763519670634,3.63267816,3121.0,3120.9,0.4497]
[1763519671825,4.15209816,3121.0,3120.9,0.4497]
[1763519673539,0.00407816,3121.0,3120.9,0.96913]
[1763519673829,0.00407816,3121.0,3120.9,2.10288283]
[1763519675545,0.52349816,3121.0,3120.9,2.10288283]
[1763519675732,0.94429816,3121.0,3120.9,0.4497]
[1763519675927,0.94429816,3121.0,3120.9,0.96914]
[1763519676131,0.00407816,3121.0,3120.9,2.10289283]
[1763519681143,0.94429816,3121.0,3120.9,0.96913]
[1763519681335,0.00407816,3121.0,3120.9,0.96913]
[1763519682643,0.00407816,3121.0,3120.9,2.10288283]
[1763519685352,0.00407816,3121.0,3120.9,0.96913]
[1763519686349,0.52349816,3121.0,3120.9,0.96913]
[1763519686542,0.94429816,3121.0,3120.9,0.96913]
[1763519687142,0.52349816,3121.0,3120.9,0.96913]
[1763519687448,0.52349816,3121.0,3120.9,4.17693]
[1763519687646,0.94429816,3121.0,3120.9,3.2078]
[1763519687847,0.52349816,3121.0,3120.9,4.5080273]
[1763519688043,0.52349816,3121.0,3120.9,5.0274673]
[1763519688346,0.94429816,3121.0,3120.9,3.2078]
[1763519688735,1.14899816,3121.0,3120.9,3.2078]
[1763519689138,0.94029,3120.6,3120.5,0.2622]
[1763519689341,0.9403,3120.5,3120.4,4.0583273]
[1763519689635,0.4208,3120.2,3120.1,0.8505273]
[1763519690147,0.94037,3120.1,3120.0,4.31629565]
[1763519690551,0.51957,3120.1,3120.0,4.76599565]
[1763519690747,0.51952,3120.5,3120.4,0.4497]
[1763519690948,0.94032,3120.5,3120.4,0.4497]
[1763519691350,0.94035,3120.2,3120.1,1.30120889]
[1763519691646,0.94035,3120.2,3120.1,0.4497]
[1763519691846,0.51955,3120.2,3120.1,0.96926]
[1763519692052,0.51952,3120.4,3120.3,0.96923]
[1763519692249,0.51952,3120.4,3120.0,4.31727724]
[1763519692250,0.94028,3120.6,3120.5,0.7119]
[1763519692450,0.51954,3120.3,3120.2,0.4497]
[1763519692650,0.94034,3120.3,3120.2,0.4497]
[1763519692847,0.94037,3120.1,3120.0,3.91546835]
[1763519693354,0.94037,3120.1,3120.0,3.21056835]
[1763519694551,0.94037,3120.1,3120.0,3.92246835]
[1763519695552,0.94037,3120.1,3120.0,0.71466835]
[1763519696854,0.94037,3120.1,3120.0,0.00276835]
[1763519700855,0.94037,3120.1,3120.0,0.69796835]
[1763519701055,0.51957,3120.1,3120.0,0.69796835]
[1763519701256,0.91837,3120.1,3120.0,0.69796835]
[1763519701655,0.91837,3120.1,3120.0,0.00276835]
[1763519701959,0.91837,3120.1,3120.0,0.63436835]
[1763519702355,0.91837,3120.1,3120.0,0.24826835]
[1763519702561,0.91837,3120.1,3120.0,0.00276835]
[1763519703452,0.91842,3119.8,3119.7,0.00480623]
[1763519703656,1.13697,3119.5,3119.4,3.2078]
[1763519703859,0.91855,3119.0,3118.9,4.05930889]
[1763519704052,0.91855,3119.0,3118.9,3.2078]
[1763519704258,0.91855,3119.0,3118.9,3.5939]
[1763519704454,0.91855,3119.0,3118.9,3.5976183]
[1763519704658,0.91855,3119.0,3118.9,3.2115183]
[1763519704856,0.00480623,3119.3,3119.2,0.3861]
[1763519705057,0.3988,3119.1,3119.0,0.6316]
[1763519705259,0.91855,3119.0,3118.9,3.2115183]
[1763519705465,0.3988,3119.0,3118.9,3.5976183]
[1763519705961,0.91855,3119.0,3118.9,4.1173883]
[1763519706365,0.91855,3119.0,3118.9,3.5976183]
[1763519706761,3.2078,3120.1,3119.0,0.2455]
[1763519706961,0.2185,3120.5,3119.9,3.5939]
[1763519706962,0.51959,3120.0,3119.9,3.5939]
[1763519707664,3.2078,3120.7,3120.1,0.90567]
[1763519707863,3.21260623,3120.7,3120.1,0.90567]
[1763519708064,0.51954,3120.3,3120.2,0.3861]
[1763519708266,0.91834,3120.3,3120.2,0.3861]
[1763519709465,0.51954,3120.3,3120.2,0.3861]
[1763519710168,0.91834,3120.3,3120.2,0.3861]
[1763519712164,0.51951,3120.5,3120.4,0.3861]
[1763519713067,0.91831,3120.5,3120.4,0.3861]
[1763519713566,0.51951,3120.5,3120.4,0.3861]
[1763519713764,0.51951,3120.5,3120.4,3.5939]
[1763519713971,0.52427623,3120.7,3120.6,0.3861]
[1763519714166,0.92307623,3120.7,3120.6,0.3861]
[1763519716661,0.51953,3120.3,3120.1,0.00480623]
[1763519716966,0.3988,3120.2,3120.1,0.00480623]
[1763519720275,0.91835,3120.2,3120.1,0.00480623]
[1763519727277,0.51955,3120.2,3120.1,0.38260623]
[1763519727473,0.86835,3120.2,3120.1,0.00480623]
[1763519734981,0.86835,3120.2,3120.1,0.35900623]
[1763519737585,0.86835,3120.2,3120.1,0.00480623]
[1763519737988,0.3488,3119.7,3119.6,4.05930889]
[1763519738287,0.86843,3119.7,3119.6,3.2078]
[1763519739578,1.10596258,3119.9,3119.3,0.85631512]
[1763519739579,0.86848,3119.4,3119.3,0.85631512]
[1763519739780,4.07628,3119.4,3119.3,6.23e-06]
[1763519739979,0.86855,3119.0,3118.9,0.0037183]
[1763519740290,1.06845,3119.0,3118.9,0.0037183]
[1763519740587,4.27625,3119.0,3118.9,0.0037183]
[1763519740888,0.86855,3119.0,3118.9,0.0037183]
[1763519741386,0.86855,3119.0,3118.9,0.3579183]
[1763519742090,0.86855,3119.0,3118.9,0.0037183]
[1763519742296,1.06845,3119.0,3118.9,0.0037183]
[1763519742794,0.86855,3119.0,3118.9,0.3579183]
[1763519742979,0.51975,3119.0,3118.9,0.3579183]
[1763519743490,0.86855,3119.0,3118.9,0.3579183]
[1763519743786,0.86855,3119.0,3118.9,0.0037183]
[1763519745283,1.06845,3119.0,3118.9,0.0037183]
[1763519747487,4.27625,3119.0,3118.9,0.0037183]
[1763519748599,4.07635,3119.0,3118.9,0.0037183]
[1763519749389,4.07635,3119.0,3118.9,0.3579183]
[1763519750092,4.07635,3119.0,3118.9,0.0037183]
[1763519752301,4.27625,3119.0,3118.9,0.0037183]
[1763519761007,0.8321,3118.7,3118.6,0.00480623]
[1763519761310,0.8321,3118.7,3118.6,0.32790623]
[1763519761612,0.8321,3118.7,3118.6,0.00480623]
[1763519762313,0.83518995,3118.7,3118.6,0.33089276]
[1763519763116,0.83518995,3118.7,3118.6,0.00779276]
[1763519765911,0.52288995,3118.7,3118.6,0.33089276]
[1763519766609,0.00308995,3118.7,3118.6,0.85071276]
[1763519766808,0.00308995,3118.7,3118.6,1.70222165]
[1763519767009,0.00308995,3118.7,3118.6,7.70222165]
[1763519767413,0.00308995,3118.7,3118.6,6.85071276]
[1763519767614,0.52288995,3118.7,3118.6,6.33089276]
[1763519767817,0.52288995,3118.7,3118.6,7.18651271]
[1763519768118,0.00308995,3118.7,3118.6,7.18651271]
[1763519768318,0.52288995,3118.7,3118.6,6.33089276]
[1763519768620,0.00308995,3118.7,3118.6,0.85071276]
[1763519768921,0.00308995,3118.7,3118.6,1.98446559]
[1763519769312,0.00480623,3119.0,3118.6,1.98446559]
[1763519769313,0.00480623,3119.0,3118.9,0.84287]
[1763519769622,3.2078,3119.9,3119.5,0.1888]
[1763519769923,0.51965,3119.6,3119.5,2.4740165]
[1763519770413,0.00380562,3119.6,3119.5,2.9936865]
[1763519770816,0.00380562,3119.6,3119.5,2.13753258]
[1763519771818,0.51958,3120.1,3120.0,0.5119]
[1763519772016,3.2078,3120.3,3120.2,0.3231]